bitfinex/quotes_SOLUSD_20250429
["timestamp","ask_amount","ask_price","bid_price","bid_amount"]
[1745946080250,15.38645837,148.39,148.33,6.80472453]
[1745946080465,15.38645837,148.39,148.35,15.2442968]
[1745946081381,0.14216157,148.39,148.35,15.2442968]
[1745946081558,0.14216157,148.39,148.36,24.43221225]
[1745946082166,0.14216157,148.39,148.35,24.43221225]
[1745946082668,0.14216157,148.39,148.33,23.65903586]
[1745946082852,0.14216157,148.39,148.37,6.73990698]
[1745946083780,24.43221225,148.38,148.34,31.1734823]
[1745946083963,24.57437382,148.39,148.35,24.43221225]
[1745946084168,18.88679191,148.4,148.36,24.43221225]
[1745946084169,17.54,148.4,148.36,24.43221225]
[1745946084751,17.54,148.4,148.34,6.74127005]
[1745946084752,24.43221225,148.37,148.34,6.74127005]
[1745946084951,24.57437382,148.38,148.33,24.49521225]
[1745946085157,17.68216157,148.4,148.36,24.43221225]
[1745946085368,17.68216157,148.4,148.33,24.49521225]
[1745946085568,24.57437382,148.39,148.35,24.43221225]
[1745946085777,24.43221225,148.38,148.34,24.43221225]
[1745946085971,24.57437382,148.39,148.35,24.43221225]
[1745946086151,24.43221225,148.38,148.34,24.43221225]
[1745946086552,24.43221225,148.38,148.33,24.49521225]
[1745946086752,24.43221225,148.37,148.33,24.49521225]
[1745946086953,24.43221225,148.37,148.34,6.74127005]
[1745946088880,24.43221225,148.37,148.33,0.063]
[1745946088881,24.43221225,148.35,148.33,0.063]
[1745946089101,24.43221225,148.34,148.33,0.063]
[1745946089577,24.57437382,148.34,148.33,0.063]
[1745946090075,69.68987382,148.34,148.33,0.063]
[1745946090383,94.26424764,148.34,148.33,0.063]
[1745946090557,112.9138965,148.34,148.33,0.063]
[1745946090957,69.83203539,148.34,148.33,0.063]
[1745946091490,43.68987382,148.34,148.33,0.063]
[1745946092001,76.57330544,148.34,148.33,0.063]
[1745946092559,69.83203539,148.34,148.33,0.063]
[1745946092760,76.57330544,148.34,148.33,0.063]
[1745946093185,101.00551769,148.34,148.33,0.063]
[1745946093558,119.65516655,148.34,148.33,0.063]
[1745946094701,93.93948969,148.34,148.33,0.063]
[1745946097866,43.68987382,148.34,148.33,0.063]
[1745946098070,42.11437382,148.34,148.33,0.063]
[1745946101265,17.68216157,148.34,148.33,0.063]
[1745946101466,68.11437382,148.34,148.33,0.063]
[1745946101989,69.46116573,148.34,148.33,0.063]
[1745946102868,68.11437382,148.34,148.33,0.063]
[1745946103500,68.25653539,148.34,148.33,0.063]
[1745946103679,111.3383965,148.34,148.33,0.063]
[1745946103875,92.36398969,148.34,148.33,0.063]
[1745946104270,100.33868435,148.34,148.33,0.063]
[1745946104569,44.933972,148.33,148.32,0.063]
[1745946104768,0.28432314,148.29,148.27,0.063]
[1745946104974,1.34679191,148.28,148.27,0.063]
[1745946105275,25.77900416,148.28,148.27,0.063]
[1745946105676,0.14216157,148.29,148.27,0.063]
[1745946105881,24.43221225,148.28,148.27,0.063]
[1745946107266,24.57437382,148.28,148.27,0.063]
[1745946107976,49.02053323,148.28,148.27,0.063]
[1745946108999,42.13437382,148.28,148.27,0.063]
[1745946109992,17.70216157,148.28,148.27,0.063]
[1745946110199,42.13437382,148.28,148.27,0.063]
[1745946111372,43.48116573,148.28,148.27,0.063]
[1745946111694,34.34649155,148.28,148.27,0.063]
[1745946111902,32.99969964,148.28,148.27,0.063]
[1745946112411,24.58832098,148.28,148.27,0.063]
[1745946112575,75.17983789,148.28,148.27,0.063]
[1745946112771,59.88229982,148.28,148.27,0.063]
[1745946112974,34.48865312,148.28,148.27,0.063]
[1745946113374,19.04895348,148.28,148.27,0.063]
[1745946113574,34.34649155,148.28,148.27,0.063]
[1745946113788,19.04895348,148.28,148.27,0.063]
[1745946113985,34.34649155,148.28,148.27,0.063]
[1745946114183,19.04895348,148.28,148.27,0.063]
[1745946114384,34.34649155,148.28,148.27,0.063]
[1745946115404,17.14216157,148.31,148.27,0.063]
[1745946115604,15.29753807,148.3,148.27,0.063]
[1745946115908,15.29753807,148.29,148.27,0.063]
[1745946116207,17.14216157,148.31,148.27,0.063]
[1745946116208,16.78649155,148.28,148.27,0.063]
[1745946116583,15.43969964,148.28,148.27,0.063]
[1745946118306,17.0,148.31,148.27,0.063]
[1745946118526,1.48895348,148.3,148.27,0.063]
[1745946118808,15.29753807,148.28,148.27,0.063]
[1745946119180,15.43969964,148.28,148.27,0.063]
[1745946119910,1.34679191,148.3,148.27,0.063]
[1745946120099,15.29753807,148.28,148.27,0.063]
[1745946122115,0.14216157,148.29,148.27,0.063]
[1745946122317,15.29753807,148.28,148.27,0.063]
[1745946123105,23.74279513,148.31,148.27,0.063]
[1745946123106,17.0,148.31,148.27,0.063]
[1745946123302,17.0,148.31,148.28,15.29753807]
[1745946123823,32.29753807,148.31,148.27,15.36053807]
[1745946124025,33.64432998,148.31,148.27,15.36053807]
[1745946124228,15.29753807,148.28,148.27,0.063]
[1745946124396,16.64432998,148.28,148.27,0.063]
[1745946124918,32.22619119,148.28,148.27,0.063]
[1745946125117,58.22619119,148.28,148.27,0.063]
[1745946125630,76.87584005,148.28,148.27,0.063]
[1745946125934,0.14216157,148.27,148.26,0.9387189]
[1745946126095,49.52904814,148.27,148.26,0.9387189]
[1745946126296,49.52904814,148.27,148.21,0.063]
[1745946126297,6.74490759,148.26,148.21,0.063]
[1745946126526,44.48895348,148.25,148.21,0.063]
[1745946126724,15.29753807,148.22,148.21,0.063]
[1745946127313,15.43969964,148.22,148.21,0.063]
[1745946127714,24.64018827,148.22,148.21,0.063]
[1745946128514,1.34679191,148.23,148.21,0.063]
[1745946128724,0.14216157,148.24,148.21,0.063]
[1745946128926,24.64018827,148.24,148.21,0.063]
[1745946129435,1.34679191,148.23,148.21,0.063]
[1745946129639,24.4980267,148.22,148.21,0.063]
[1745946130513,24.64018827,148.22,148.21,0.063]
[1745946130711,77.43978357,148.22,148.21,0.063]
[1745946130914,77.43978357,148.22,148.12,0.063]
[1745946130915,26.14216157,148.19,148.12,0.063]
[1745946131152,24.64018827,148.13,148.12,0.063]
[1745946131345,26.14216157,148.13,148.12,0.063]
[1745946131526,76.62716845,148.13,148.12,0.063]
[1745946131714,24.64018827,148.12,148.02,6.75542215]
[1745946131914,24.4980267,148.06,148.01,6.75620121]
[1745946132114,24.4980267,148.06,148.01,24.4980267]
[1745946132310,0.14216157,148.08,148.01,26.0]
[1745946132539,24.4980267,148.04,148.0,31.75432849]
[1745946132749,24.4980267,148.04,148.0,7.25630179]
[1745946133015,0.14216157,148.08,148.0,0.5]
[1745946133223,24.4980267,148.03,148.0,7.25670685]
[1745946133444,0.14216157,148.06,148.0,7.25670685]
[1745946133617,24.4980267,148.03,148.0,0.5]
[1745946133814,24.4980267,148.04,148.0,0.5]
[1745946134233,1.48895348,148.06,148.0,0.5]
[1745946134431,1.34679191,148.05,148.0,0.5]
[1745946134651,24.4980267,148.03,148.0,0.5]
[1745946134942,24.4980267,148.01,148.0,0.5]
[1745946135141,24.4980267,148.02,148.0,0.5]
[1745946135324,24.4980267,148.01,148.0,0.5]
[1745946136435,24.64018827,148.01,148.0,0.5]
[1745946136738,31.53865008,148.01,148.0,0.5]
[1745946136924,50.18829894,148.01,148.0,0.5]
[1745946137126,34.1359,147.97,147.85,0.063]
[1745946137329,24.4980267,147.86,147.85,0.063]
[1745946137851,18.50895348,147.9,147.85,0.063]
[1745946138219,24.4980267,147.86,147.85,0.063]
[1745946138424,24.64018827,147.86,147.85,0.063]
[1745946138626,49.13821497,147.86,147.85,0.063]
[1745946138928,41.66018827,147.86,147.85,0.063]
[1745946139126,0.14216157,147.9,147.85,0.063]
[1745946139328,1.34679191,147.9,147.85,24.5610267]
[1745946139635,0.14216157,147.91,147.85,24.5610267]
[1745946139946,24.4980267,147.86,147.82,26.0]
[1745946140119,1.34679191,147.9,147.83,26.0]
[1745946140320,24.4980267,147.84,147.8,32.76581348]
[1745946140534,24.4980267,147.84,147.76,69.88749738]
[1745946140535,21.14302993,147.87,147.76,17.4]
[1745946140738,24.4980267,147.84,147.79,24.4980267]
[1745946140922,24.4980267,147.84,147.79,50.4980267]
[1745946141342,24.4980267,147.86,147.82,24.4980267]
[1745946141549,24.4980267,147.86,147.81,24.4980267]
[1745946141732,24.4980267,147.86,147.79,26.0]
[1745946141733,24.4980267,147.84,147.77,23.68485774]
[1745946141934,24.4980267,147.84,147.79,24.4980267]
[1745946142250,1.34679191,147.89,147.78,0.14216157]
[1745946142430,1.34679191,147.89,147.82,24.4980267]
[1745946142745,1.34679191,147.89,147.78,0.14216157]
[1745946142746,24.4980267,147.86,147.83,6.76452682]
[1745946142942,1.34679191,147.89,147.83,31.26255352]
[1745946143139,24.4980267,147.87,147.83,6.76452682]
[1745946143447,1.34679191,147.9,147.83,31.26255352]
[1745946143656,24.4980267,147.88,147.84,24.4980267]
[1745946143829,24.4980267,147.87,147.83,23.67584387]
[1745946144226,1.34679191,147.88,147.83,6.76452682]
[1745946144454,1.34679191,147.89,147.84,24.4980267]
[1745946144628,1.34679191,147.91,147.87,24.4980267]
[1745946144832,64.34939699,147.92,147.87,24.4980267]
[1745946145173,87.50063178,147.92,147.85,23.67264118]
[1745946145357,63.00260508,147.92,147.9,24.4980267]
[1745946145741,63.00260508,147.92,147.91,24.4980267]
[1745946146445,1.48895348,147.99,147.91,24.4980267]
[1745946146645,24.4980267,147.97,147.93,24.4980267]
[1745946147063,1.48895348,147.99,147.93,54.4980267]
[1745946147245,24.4980267,147.98,147.94,24.4980267]
[1745946147454,1.48895348,147.99,147.93,30.0]
[1745946147455,24.4980267,147.96,147.93,30.0]
[1745946147662,37.27772343,147.96,147.93,30.0]
[1745946147855,37.27772343,147.96,147.92,44.03813446]
[1745946148263,37.27772343,147.96,147.92,6.76041103]
[1745946148459,37.27772343,147.96,147.92,44.03813446]
[1745946148945,37.27772343,147.97,147.92,44.03813446]
[1745946149260,37.27772343,147.98,147.93,37.27772343]
[1745946149455,37.27772343,147.95,147.92,6.76041103]
[1745946149776,37.27772343,147.95,147.88,42.90485958]
[1745946149777,37.27772343,147.93,147.89,6.7617824]
[1745946150149,37.27772343,147.93,147.89,44.03950583]
[1745946150356,37.27772343,147.94,147.89,6.7617824]
[1745946150650,37.27772343,147.93,147.89,37.27772343]
[1745946150974,37.27772343,147.94,147.9,37.27772343]
[1745946151745,37.27772343,147.91,147.85,6.76361176]
[1745946151941,1.34679191,147.9,147.85,6.76361176]
[1745946152380,37.27772343,147.88,147.86,30.0]
[1745946152583,1.34679191,147.9,147.86,30.0]
[1745946152786,37.27772343,147.9,147.87,6.76269696]
[1745946153283,37.27772343,147.88,147.81,6.1891]
[1745946153584,37.27772343,147.88,147.83,37.27772343]
[1745946153761,37.27772343,147.89,147.85,37.27772343]
[1745946154392,37.27772343,147.9,147.85,37.27772343]
[1745946155086,0.14216157,147.92,147.86,44.04087776]
[1745946155393,37.27772343,147.9,147.86,44.04087776]
[1745946155585,38.62451534,147.91,147.86,44.04087776]
[1745946155769,37.27772343,147.9,147.86,44.04087776]
[1745946156189,1.34679191,147.92,147.86,44.04087776]
[1745946156492,1.34679191,147.93,147.89,37.27772343]
[1745946157164,0.14216157,147.97,147.92,37.27772343]
[1745946157165,1.34679191,147.97,147.92,37.27772343]
[1745946157371,1.34679191,147.97,147.94,37.27772343]
[1745946157565,1.34679191,147.98,147.95,37.27772343]
[1745946157772,1.34679191,147.98,147.94,37.27772343]
[1745946157984,38.62451534,147.98,147.94,6.75927834]
[1745946158199,37.27772343,147.97,147.94,6.75927834]
[1745946158371,38.62451534,147.98,147.94,6.75927834]
[1745946159376,1.34679191,147.98,147.94,44.03700177]
[1745946159691,37.27772343,147.97,147.94,6.75927834]
[1745946159897,37.27772343,147.95,147.87,23.6686272]
[1745946160079,37.27772343,147.9,147.87,6.76269696]
[1745946160282,37.27772343,147.89,147.87,6.76269696]
[1745946160870,37.27772343,147.89,147.86,6.76297934]
[1745946161471,1.34679191,147.88,147.85,6.7634521]
[1745946161793,37.27772343,147.87,147.84,6.76400596]
[1745946161972,38.62451534,147.86,147.82,6.76498444]
[1745946162175,38.62451534,147.86,147.82,44.04270787]
[1745946162373,1.34679191,147.89,147.83,37.27772343]
[1745946162601,17.42,147.94,147.88,37.27772343]
[1745946162772,1.34679191,147.93,147.85,26.28432314]
[1745946162979,37.27772343,147.89,147.85,26.0]
[1745946163171,37.27772343,147.91,147.87,37.27772343]
[1745946163391,1.34679191,147.93,147.88,37.27772343]
[1745946163624,1.34679191,147.93,147.86,0.28432314]
[1745946163773,37.27772343,147.92,147.88,37.27772343]
[1745946164100,37.27772343,147.92,147.89,6.7617824]
[1745946164677,1.34679191,147.93,147.89,6.7617824]
[1745946164872,37.27772343,147.92,147.89,6.7617824]
[1745946165091,1.34679191,147.93,147.89,44.03950583]
[1745946165302,38.62451534,147.93,147.89,44.03950583]
[1745946165679,38.62451534,147.93,147.89,11.14605234]
[1745946165874,38.62451534,147.93,147.87,16.90667948]
[1745946166099,38.62451534,147.93,147.89,37.27772343]
[1745946166278,1.34679191,147.93,147.9,37.27772343]
[1745946166601,1.34679191,147.93,147.87,23.66937644]
[1745946166788,1.34679191,147.93,147.89,37.27772343]
[1745946167281,1.34679191,147.93,147.87,23.66937644]
[1745946167499,38.62451534,147.93,147.89,37.27772343]
[1745946167714,38.62451534,147.93,147.88,37.27772343]
[1745946168208,38.62451534,147.93,147.89,6.7617824]
[1745946168413,1.34679191,147.93,147.89,6.7617824]
[1745946168717,38.62451534,147.93,147.89,6.7617824]
[1745946169092,38.62451534,147.93,147.89,44.03950583]
[1745946169607,18.76679191,147.94,147.9,37.27772343]
[1745946169807,56.04451534,147.94,147.9,37.27772343]
[1745946170006,18.76679191,147.94,147.91,6.76086809]
[1745946170202,56.04451534,147.94,147.91,6.76086809]
[1745946170591,1.34679191,147.97,147.93,37.27772343]
[1745946170787,38.62451534,147.97,147.92,37.27772343]
[1745946171012,1.34679191,147.97,147.94,37.27772343]
[1745946171418,17.04,147.98,147.95,37.27772343]
[1745946171629,37.27772343,147.96,147.89,6.7617824]
[1745946171926,38.62451534,147.95,147.91,37.27772343]
[1745946172095,38.62451534,147.95,147.92,6.76041103]
[1745946172096,1.34679191,147.95,147.92,6.76041103]
[1745946172416,1.34679191,147.97,147.93,37.27772343]
[1745946172596,38.62451534,147.97,147.93,37.27772343]
[1745946172914,1.34679191,147.97,147.96,37.27772343]
[1745946173110,15.93548693,148.0,147.96,37.27772343]
[1745946173111,9.17854221,148.0,147.96,37.27772343]
[1745946173283,9.17854221,148.0,147.97,37.27772343]
[1745946173489,9.17854221,148.0,147.96,37.27772343]
[1745946173687,46.45626564,148.0,147.96,37.27772343]
[1745946173890,37.27772343,147.98,147.93,37.27772343]
[1745946174102,37.27772343,147.98,147.94,44.03722052]
[1745946174305,37.27772343,147.98,147.94,6.75949709]
[1745946174506,1.34679191,147.97,147.93,44.03749731]
[1745946175403,38.62451534,147.97,147.93,6.75977388]
[1745946175822,1.34679191,147.97,147.93,44.03749731]
[1745946175999,37.27772343,147.97,147.93,6.75977388]
[1745946176313,37.27772343,147.97,147.9,23.66353626]
[1745946176518,37.27772343,147.97,147.92,37.27772343]
[1745946176902,37.27772343,147.97,147.93,37.27772343]
[1745946177215,1.34679191,147.98,147.9,23.66353626]
[1745946177391,37.27772343,147.94,147.89,6.7617824]
[1745946177592,37.27772343,147.94,147.89,44.03950583]
[1745946177794,38.62451534,147.93,147.89,44.03950583]
[1745946178008,38.62451534,147.93,147.89,6.7617824]
[1745946178211,38.62451534,147.93,147.89,44.03950583]
[1745946178421,38.62451534,147.93,147.85,6.76361176]
[1745946178422,37.27772343,147.91,147.85,6.76361176]
[1745946178600,38.62451534,147.91,147.87,37.27772343]
[1745946178799,37.27772343,147.9,147.85,6.76361176]
[1745946179014,37.27772343,147.9,147.85,44.04133519]
[1745946179218,37.27772343,147.9,147.86,37.27772343]
[1745946179522,37.27772343,147.9,147.86,44.04050083]
[1745946179695,37.27772343,147.9,147.86,6.7627774]
[1745946180015,37.27772343,147.9,147.86,44.04050083]
[1745946180424,17.04,147.92,147.89,37.27772343]
[1745946180612,1.34679191,147.91,147.86,6.7627774]
[1745946180806,38.62451534,147.91,147.86,44.04050083]
[1745946181004,37.27772343,147.9,147.86,44.04050083]
[1745946181406,37.27772343,147.9,147.85,6.7634985]
[1745946181605,37.27772343,147.9,147.86,37.27772343]
[1745946181808,37.27772343,147.88,147.84,37.27772343]
[1745946182232,38.62451534,147.89,147.84,37.27772343]
[1745946182420,38.62451534,147.89,147.85,37.27772343]
[1745946182623,1.34679191,147.89,147.87,37.27772343]
[1745946182845,18.38679191,147.92,147.83,26.28432314]
[1745946183011,18.38679191,147.92,147.88,37.27772343]
[1745946183012,55.66451534,147.92,147.88,37.27772343]
[1745946183213,18.38679191,147.92,147.9,37.27772343]
[1745946183519,18.38679191,147.97,147.92,6.76041103]
[1745946183713,18.38679191,147.97,147.94,24.57439782]
[1745946183914,18.38679191,147.97,147.93,24.57439782]
[1745946184113,18.38679191,147.97,147.92,6.76041103]
[1745946184114,18.38679191,147.97,147.94,24.57439782]
[1745946184514,18.38679191,147.97,147.92,6.76041103]
[1745946184515,18.38679191,147.97,147.95,24.57439782]
[1745946184722,18.38679191,147.97,147.94,24.57439782]
[1745946184926,18.38679191,147.97,147.92,6.76041103]
[1745946184927,18.38679191,147.97,147.95,24.57439782]
[1745946185312,18.38679191,147.97,147.96,24.57439782]
[1745946185313,17.04,147.97,147.96,24.57439782]
[1745946185728,17.04,147.97,147.95,44.01958242]
[1745946186435,17.04,147.97,147.95,37.26087012]
[1745946186618,17.04,147.97,147.94,44.02018977]
[1745946186824,17.04,147.97,147.96,37.26087012]
[1745946187127,1.34679191,147.99,147.96,37.26087012]
[1745946187329,1.34679191,147.99,147.97,37.26087012]
[1745946188119,10.52533412,148.0,147.98,37.26087012]
[1745946188632,1.40979191,148.01,147.98,37.26087012]
[1745946188823,38.67066203,148.01,147.96,37.26087012]
[1745946189133,38.67066203,148.01,147.95,6.75887273]
[1745946189134,1.40979191,148.01,147.98,37.26087012]
[1745946189340,1.40979191,148.01,147.99,37.26087012]
[1745946189520,0.063,148.01,147.99,44.01774303]
[1745946189720,0.063,148.01,148.0,37.26087012]
[1745946190131,0.063,148.01,147.98,37.26087012]
[1745946190533,37.32387012,148.01,147.97,37.26087012]
[1745946190721,0.063,148.01,147.99,37.26087012]
[1745946190921,0.063,148.01,147.96,6.75847999]
[1745946191214,0.063,148.01,147.98,37.26087012]
[1745946191944,0.063,148.01,147.94,16.89816529]
[1745946192143,37.26087012,147.98,147.93,37.26087012]
[1745946192439,1.34679191,147.97,147.92,37.26087012]
[1745946192743,54.30087012,147.99,147.95,37.26087012]
[1745946193044,1.34679191,147.98,147.95,37.26087012]
[1745946193423,1.34679191,147.98,147.94,37.26087012]
[1745946193825,1.34679191,147.98,147.94,44.02022711]
[1745946194141,1.34679191,147.98,147.94,37.26087012]
[1745946194338,1.34679191,147.98,147.95,37.26087012]
[1745946194537,1.34679191,147.98,147.94,44.02025216]
[1745946194936,0.063,148.01,147.97,37.26087012]
[1745946195132,38.60766203,148.0,147.96,37.26087012]
[1745946195328,37.26087012,147.99,147.95,37.26087012]
[1745946195537,1.34679191,147.98,147.95,37.26087012]
[1745946195731,1.34679191,147.98,147.96,37.26087012]
[1745946195932,1.40979191,148.01,147.97,37.26087012]
[1745946196647,38.67066203,148.01,147.97,37.26087012]
[1745946196848,38.67066203,148.01,147.96,37.26087012]
[1745946197629,38.67066203,148.01,147.97,37.26087012]
[1745946198143,1.40979191,148.01,147.99,37.26087012]
[1745946198654,0.063,148.01,147.99,37.26087012]
[1745946199026,0.063,148.01,148.0,37.26087012]
[1745946200342,0.063,148.01,147.98,6.75731605]
[1745946200545,38.67066203,148.01,147.95,82.5]
[1745946200740,38.67066203,148.01,147.96,37.26087012]
[1745946201052,38.67066203,148.01,147.97,37.26087012]
[1745946201247,1.40979191,148.01,147.97,37.26087012]
[1745946201549,0.063,148.01,148.0,37.26087012]
[1745946202142,0.063,148.01,148.0,44.01762687]
[1745946207556,0.063,148.01,148.0,31.30079344]
[1745946212365,0.063,148.01,148.0,6.75675675]
[1745946212559,0.063,148.01,148.0,31.30079344]
[1745946216378,0.063,148.01,148.0,6.75675675]
[1745946216674,0.063,148.01,148.0,31.30079344]
[1745946216976,0.063,148.01,148.0,24.54403669]
[1745946217369,0.063,148.01,147.95,16.89742063]
[1745946217751,0.063,148.01,147.98,24.54403669]
[1745946218071,0.063,148.01,147.99,24.54403669]
[1745946218570,0.063,148.01,147.97,6.75812664]
[1745946218948,0.063,148.01,147.99,24.54403669]
[1745946219168,0.063,148.01,147.97,6.75812664]
[1745946219368,24.60703669,148.01,147.94,6.75949709]
[1745946219673,1.34679191,148.0,147.97,24.54403669]
[1745946220559,25.8908286,148.0,147.96,24.54403669]
[1745946221969,1.34679191,148.0,147.98,24.54403669]
[1745946222166,1.40979191,148.01,147.98,24.54403669]
[1745946222777,25.9538286,148.01,147.97,24.54403669]
[1745946223144,25.9538286,148.01,147.98,24.54403669]
[1745946223348,1.40979191,148.01,148.0,24.54403669]
[1745946223556,0.063,148.01,148.0,24.54403669]
[1745946223853,0.063,148.01,147.96,23.6550419]
[1745946224082,0.063,148.01,148.0,24.54403669]
[1745946225959,0.063,148.01,148.0,31.30079344]
[1745946229895,0.063,148.01,148.0,57.30079344]
[1745946231787,0.063,148.02,148.0,31.30079344]
[1745946231995,0.063,148.02,148.01,57.30033693]
[1745946232766,0.063,148.03,148.01,57.30033693]
[1745946232976,0.063,148.07,148.05,26.0]
[1745946233180,0.063,148.07,148.06,24.54403669]
[1745946234075,0.063,148.07,148.06,31.29805533]
[1745946234394,1e-08,148.07,148.06,32.95535533]
[1745946234567,1e-08,148.07,148.06,33.23967847]
[1745946234775,0.063,148.11,148.06,50.12472507]
[1745946234984,0.063,148.11,148.1,24.54403669]
[1745946236291,0.063,148.11,148.1,31.29623115]
[1745946237867,0.063,148.11,148.1,24.54403669]
[1745946238096,0.063,148.11,148.1,31.29623115]
[1745946238987,0.063,148.11,148.1,55.84026784]
[1745946239799,0.063,148.16,148.1,72.72075399]
[1745946240113,0.063,148.16,148.15,24.54403669]
[1745946241070,0.063,148.16,148.14,6.75031215]
[1745946241265,0.063,148.16,148.15,24.54403669]
[1745946243284,0.063,148.16,148.12,24.54403669]
[1745946243496,0.063,148.16,148.11,6.75173857]
[1745946243779,0.063,148.16,148.13,24.54403669]
[1745946244197,0.063,148.16,148.14,24.54403669]
[1745946244382,0.063,148.16,148.15,24.54403669]
[1745946246484,0.063,148.16,148.15,31.29395231]
[1745946247703,26.16813669,148.16,148.09,23.63427644]
[1745946247894,24.54403669,148.13,148.09,24.54403669]
[1745946248205,24.54403669,148.14,148.1,24.54403669]
[1745946248588,24.54403669,148.14,148.08,6.75295374]
[1745946248784,24.54403669,148.14,148.1,24.54403669]
[1745946249301,31.29450532,148.14,148.07,6.75347218]
[1745946249509,25.8908286,148.13,148.09,24.54403669]
[1745946250503,32.64169155,148.13,148.09,24.54403669]
[1745946250682,24.54403669,148.11,148.06,32.75385115]
[1745946250885,25.8908286,148.1,148.05,15.98]
[1745946251098,25.8908286,148.1,148.05,24.54403669]
[1745946251399,1.34679191,148.1,148.07,24.54403669]
[1745946251787,1.34679191,148.12,148.08,24.54403669]
[1745946251976,24.10961717,148.12,148.08,24.54403669]
[1745946252587,24.54403669,148.11,148.05,6.75428523]
[1745946252788,24.54403669,148.11,148.06,24.54403669]
[1745946253010,24.54403669,148.11,148.07,24.54403669]
[1745946253796,24.54403669,148.09,148.05,6.75428523]
[1745946254098,24.54403669,148.1,148.05,31.29832192]
[1745946254917,24.54403669,148.1,148.06,24.54403669]
[1745946255407,24.54403669,148.1,148.06,31.29803481]
[1745946256414,6.75140268,148.12,148.06,31.29803481]
[1745946256618,24.54403669,148.1,148.06,31.29803481]
[1745946256805,24.54403669,148.09,148.05,24.54403669]
[1745946257201,24.54403669,148.07,148.03,24.60703669]
[1745946258320,24.54403669,148.07,148.03,0.063]
[1745946258612,24.54403669,148.05,148.03,0.063]
[1745946258986,24.54403669,148.06,148.03,24.60703669]
[1745946259190,24.54403669,148.07,148.03,24.60703669]
[1745946259411,24.54403669,148.06,148.03,0.063]
[1745946259621,1.5904,148.08,148.04,24.54403669]
[1745946259813,6.5519,148.1,148.07,24.54403669]
[1745946260115,31.09593669,148.1,148.06,24.54403669]
[1745946260615,17.5188,148.12,148.08,24.54403669]
[1745946260831,15.98,148.12,148.1,24.54403669]
[1745946261631,30.85953669,148.14,148.1,24.54403669]
[1745946261793,1.7076,148.16,148.12,24.54403669]
[1745946261990,26.25163669,148.16,148.12,24.54403669]
[1745946262711,24.54403669,148.15,148.11,31.29546399]
[1745946263016,24.54403669,148.15,148.11,6.7514273]
[1745946263218,1.7076,148.16,148.13,24.54403669]
[1745946263432,0.063,148.16,148.14,24.54403669]
[1745946263601,0.063,148.16,148.13,24.54403669]
[1745946264197,0.063,148.16,148.14,24.54403669]
[1745946264624,0.063,148.16,148.15,24.54403669]
[1745946264926,0.063,148.16,148.15,31.29395231]
[1745946267334,0.063,148.16,148.13,6.75082697]
[1745946267628,0.063,148.16,148.15,24.54403669]
[1745946267798,0.063,148.16,148.12,32.75116338]
[1745946268001,24.60703669,148.16,148.12,26.0]
[1745946268220,24.60703669,148.16,148.12,50.54403669]
[1745946268410,0.063,148.16,148.12,26.0]
[1745946268611,0.063,148.16,148.12,50.54403669]
[1745946269010,0.063,148.16,148.13,24.54403669]
[1745946269245,0.063,148.16,148.15,24.54403669]
[1745946270104,0.063,148.16,148.13,24.54403669]
[1745946270429,0.063,148.16,148.14,24.54403669]
[1745946270601,0.063,148.16,148.14,31.29426385]
[1745946270913,0.063,148.16,148.15,24.54403669]
[1745946271937,0.063,148.16,148.15,31.29395231]
[1745946273712,0.063,148.16,148.15,24.54403669]
[1745946274220,0.063,148.16,148.15,31.29395231]
[1745946275004,0.063,148.16,148.13,6.75082697]
[1745946275220,24.60703669,148.16,148.1,6.75219446]
[1745946275436,24.54403669,148.14,148.1,24.54403669]
[1745946275641,24.54403669,148.13,148.08,6.75310642]
[1745946275808,24.54403669,148.12,148.08,31.29714311]
[1745946277432,24.54403669,148.14,148.09,24.54403669]
[1745946277618,24.54403669,148.14,148.08,6.75310642]
[1745946277807,24.54403669,148.14,148.09,24.54403669]
[1745946278007,24.54403669,148.14,148.1,24.54403669]
[1745946279434,24.54403669,148.14,148.1,31.29610707]
[1745946279638,24.54403669,148.14,148.1,6.75207038]
[1745946279845,24.54403669,148.14,148.1,31.29610707]
[1745946280633,24.54403669,148.13,148.08,6.75310642]
[1745946280834,24.54403669,148.13,148.09,24.54403669]
[1745946281045,24.54403669,148.14,148.08,6.75310642]
[1745946281240,24.54403669,148.14,148.1,24.54403669]
[1745946281423,18.64964886,148.15,148.08,6.75310642]
[1745946281623,24.54403669,148.13,148.09,24.54403669]